bitfinex/quotes_BTCUSD_20241229
["timestamp","ask_amount","ask_price","bid_price","bid_amount"]
[1735476513670,0.0001708,95134.0,95124.0,0.11902821]
[1735476513884,0.0001708,95134.0,95125.0,0.0808]
[1735476514014,0.0001708,95134.0,95126.0,0.00105106]
[1735476514218,0.0001708,95134.0,95127.0,0.0808]
[1735476514420,0.0001708,95134.0,95128.0,0.00105103]
[1735476514620,0.0001708,95134.0,95129.0,0.0808]
[1735476514833,0.0001708,95134.0,95131.0,0.126]
[1735476515047,0.0001708,95134.0,95132.0,0.08185105]
[1735476515265,0.0001708,95134.0,95133.0,0.22998632]
[1735476518098,0.0011708,95134.0,95133.0,0.22998632]
[1735476518396,0.01765965,95134.0,95133.0,0.22998632]
[1735476518944,0.01765965,95134.0,95133.0,0.23298632]
[1735476519440,0.01765965,95134.0,95133.0,0.22998632]
[1735476519827,0.01865965,95134.0,95133.0,0.33298632]
[1735476520437,0.01665965,95134.0,95133.0,0.32998632]
[1735476520863,0.01865965,95134.0,95133.0,0.33298632]
[1735476523769,0.0021708,95134.0,95133.0,0.33298632]
[1735476527080,0.01865919,95134.0,95133.0,0.33298632]
[1735476531642,0.01865919,95134.0,95133.0,0.35906273]
[1735476533553,0.01865919,95134.0,95133.0,0.33298632]
[1735476533859,0.0021708,95134.0,95133.0,0.33298632]
[1735476534640,0.0011708,95134.0,95133.0,0.42998632]
[1735476534842,0.0011708,95134.0,95133.0,0.96938632]
[1735476535018,0.0011708,95134.0,95133.0,1.06632495]
[1735476535941,0.0021708,95134.0,95133.0,1.07232495]
[1735476536158,0.0011708,95134.0,95133.0,1.07232495]
[1735476536508,0.0021708,95134.0,95133.0,1.08132495]
[1735476536710,0.0001708,95134.0,95133.0,1.06632495]
[1735476536858,0.0011708,95134.0,95133.0,1.07332495]
[1735476537067,0.0021708,95134.0,95133.0,1.08232495]
[1735476537479,0.0001708,95134.0,95133.0,1.06632495]
[1735476537647,0.0001708,95134.0,95133.0,1.07432495]
[1735476537852,0.0021708,95134.0,95133.0,1.08332495]
[1735476538395,0.01865733,95134.0,95133.0,1.08332495]
[1735476539127,0.01765733,95134.0,95133.0,1.07532495]
[1735476539356,0.01665733,95134.0,95133.0,1.06632495]
[1735476539559,0.01765733,95134.0,95133.0,1.07432495]
[1735476539768,0.01865733,95134.0,95133.0,1.08332495]
[1735476543685,0.0021708,95134.0,95133.0,1.08332495]
[1735476555458,0.0021708,95134.0,95133.0,0.98638632]
[1735476556397,0.0021708,95134.0,95133.0,1.08090177]
[1735476556807,0.01865769,95134.0,95133.0,1.08090177]
[1735476557348,0.01865769,95134.0,95133.0,0.98638632]
[1735476558220,0.01865769,95134.0,95133.0,0.88638632]
[1735476558362,0.01450907,95134.0,95133.0,0.88638632]
[1735476558563,0.01450907,95134.0,95133.0,0.98090177]
[1735476558783,0.0819,95156.0,95142.0,0.1]
[1735476558990,0.0819,95156.0,95143.0,0.10503712]
[1735476560642,0.0819,95156.0,95143.0,0.10398632]
[1735476560844,0.01648691,95153.0,95143.0,0.10398632]
[1735476561469,0.01648691,95153.0,95143.0,0.11298632]
[1735476561647,0.01648691,95153.0,95143.0,0.10398632]
[1735476562033,0.01648691,95153.0,95143.0,0.11298632]
[1735476562034,0.01748691,95153.0,95143.0,0.11298632]
[1735476562441,0.01748691,95153.0,95143.0,0.11698632]
[1735476562998,0.01748691,95153.0,95144.0,0.03115018]
[1735476563154,0.01748691,95153.0,95145.0,0.10398632]
[1735476563558,0.001,95153.0,95145.0,0.10398632]
[1735476564157,0.0819,95156.0,95146.0,0.0010508]
[1735476564396,0.0819,95156.0,95147.0,0.10398632]
[1735476564576,0.0794,95162.0,95148.0,0.0246695]
[1735476564772,0.0794,95162.0,95149.0,0.10398632]
[1735476565099,0.001,95153.0,95150.0,0.00105074]
[1735476565318,0.001,95153.0,95151.0,0.10398632]
[1735476565534,0.001,95153.0,95152.0,0.01391629]
[1735476565738,0.0794,95162.0,95152.0,0.11790261]
[1735476565945,0.0469,95166.0,95153.0,0.10398632]
[1735476566240,0.0469,95166.0,95154.0,0.00105071]
[1735476566495,0.001,95156.0,95155.0,0.10398632]
[1735476566847,0.01748622,95156.0,95155.0,0.10503704]
[1735476567437,0.01748622,95156.0,95155.0,0.10398632]
[1735476567644,0.01748622,95156.0,95155.0,0.10503706]
[1735476567850,0.01648622,95156.0,95155.0,0.10503706]
[1735476569305,0.01648622,95156.0,95155.0,0.10798632]
[1735476569489,0.01748622,95156.0,95155.0,0.11698632]
[1735476573668,0.1266,95156.0,95155.0,0.013]
[1735476573885,0.13445154,95156.0,95155.0,0.013]
[1735476575836,0.1266,95156.0,95155.0,0.013]
[1735476576916,0.14308729,95156.0,95155.0,0.013]
[1735476581732,0.14325809,95156.0,95155.0,0.013]
[1735476582383,0.01765809,95156.0,95155.0,0.013]
[1735476586151,0.0011708,95156.0,95155.0,0.013]
[1735476587283,0.0011708,95156.0,95155.0,0.19988632]
[1735476587494,0.0011708,95156.0,95155.0,0.23544564]
[1735476587734,0.0011708,95156.0,95155.0,0.23439495]
[1735476589491,0.0176564,95156.0,95155.0,0.23439495]
[1735476594234,0.0011708,95156.0,95155.0,0.23439495]
[1735476594437,0.0011708,95156.0,95155.0,0.23039495]
[1735476594799,0.0011708,95156.0,95155.0,0.23439495]
[1735476595424,0.0011708,95156.0,95155.0,0.23039495]
[1735476595621,0.0021708,95156.0,95155.0,0.23639495]
[1735476596487,0.0011708,95156.0,95155.0,0.22739495]
[1735476596841,0.0021708,95156.0,95155.0,0.23639495]
[1735476597043,0.0021708,95156.0,95155.0,0.22739495]
[1735476597044,0.0011708,95156.0,95155.0,0.22739495]
[1735476597492,0.01765557,95156.0,95155.0,0.23639495]
[1735476609529,0.01765557,95156.0,95155.0,0.33639495]
[1735476609739,0.0011708,95156.0,95155.0,0.43639495]
[1735476610185,0.01765499,95156.0,95155.0,0.43639495]
[1735476610922,0.01665499,95156.0,95155.0,0.42139495]
[1735476611056,0.01865499,95156.0,95155.0,0.43639495]
[1735476611457,0.01765499,95156.0,95155.0,0.32739495]
[1735476611683,0.01665499,95156.0,95155.0,0.42139495]
[1735476611891,0.01765499,95156.0,95155.0,0.43039495]
[1735476612125,0.01865499,95156.0,95155.0,0.43739495]
[1735476612777,0.01865499,95156.0,95155.0,0.53203943]
[1735476612997,0.01865499,95156.0,95155.0,0.4975308]
[1735476613752,0.0021708,95156.0,95155.0,0.4975308]
[1735476615049,0.0021708,95156.0,95155.0,0.40288632]
[1735476620559,0.0021708,95156.0,95155.0,0.30288632]
[1735476620770,0.0021708,95156.0,95155.0,0.40288632]
[1735476621503,0.0021708,95156.0,95155.0,0.50687264]
[1735476625072,0.0021708,95156.0,95155.0,0.40687264]
[1735476625217,0.0021708,95156.0,95155.0,0.50687264]
[1735476627092,0.01865496,95156.0,95155.0,0.50687264]
[1735476628472,0.01865496,95156.0,95155.0,0.60151712]
[1735476629568,0.01865496,95156.0,95155.0,0.50687264]
[1735476631302,0.01865496,95156.0,95155.0,0.64885084]
[1735476632513,0.01865496,95156.0,95155.0,0.85655028]
[1735476633240,0.01865496,95156.0,95155.0,1.04585454]
[1735476633628,0.0021708,95156.0,95155.0,1.04585454]
[1735476634872,0.0021708,95156.0,95155.0,0.94585454]
[1735476635078,0.0021708,95156.0,95155.0,1.04585454]
[1735476636675,0.0021708,95156.0,95155.0,0.94186822]
[1735476638249,0.01865481,95156.0,95155.0,0.94186822]
[1735476640127,0.01865481,95156.0,95155.0,0.75256396]
[1735476643831,0.0021708,95156.0,95155.0,0.75256396]
[1735476644212,0.0021708,95156.0,95155.0,0.65256396]
[1735476644371,0.0021708,95156.0,95155.0,0.85655028]
[1735476645207,0.0011708,95156.0,95155.0,0.84755028]
[1735476645899,0.0001708,95156.0,95155.0,0.84055028]
[1735476646266,0.0001708,95156.0,95155.0,0.85455028]
[1735476646463,0.0001708,95156.0,95155.0,0.84555028]
[1735476646802,0.0001708,95156.0,95155.0,1.0773364]
[1735476646971,0.01665477,95156.0,95155.0,1.0923364]
[1735476648795,0.0028739,95190.0,95155.0,1.0923364]
[1735476649005,0.00050946,95177.0,95159.0,0.1]
[1735476649203,0.00050946,95177.0,95160.0,0.10503688]
[1735476650868,0.00050946,95177.0,95160.0,0.11103688]
[1735476651034,0.01648343,95173.0,95162.0,0.09481187]
[1735476651249,0.01648343,95173.0,95163.0,0.17024219]
[1735476652952,0.01648343,95173.0,95163.0,0.26505406]
[1735476653154,0.01648343,95173.0,95163.0,0.27100348]
[1735476653384,0.01648343,95173.0,95163.0,0.27400348]
[1735476653731,0.00050946,95177.0,95163.0,0.27400348]
[1735476653927,0.00059486,95177.0,95164.0,0.06162213]
[1735476654129,0.00059486,95177.0,95165.0,0.10398632]
[1735476654345,0.00059486,95177.0,95166.0,0.00105059]
[1735476654529,0.00059486,95177.0,95167.0,0.10398632]
[1735476654681,0.00059486,95177.0,95168.0,0.00105059]
[1735476654872,0.00059486,95177.0,95169.0,0.10398632]
[1735476655078,0.00059486,95177.0,95170.0,0.00105059]
[1735476655283,0.00059486,95177.0,95171.0,0.10398632]
[1735476655511,0.00059486,95177.0,95172.0,0.00105056]
[1735476655739,0.00059486,95177.0,95173.0,0.10398632]
[1735476655914,0.00059486,95177.0,95174.0,0.00105053]
[1735476656115,0.00059486,95177.0,95174.0,0.10503685]
[1735476656334,0.00059486,95177.0,95174.0,0.11554054]
[1735476656922,0.00059486,95177.0,95174.0,0.10503685]
[1735476658372,0.00059486,95177.0,95174.0,0.10703685]
[1735476658573,0.00059486,95177.0,95174.0,0.11303685]
[1735476665679,0.00059486,95177.0,95174.0,0.11320765]
[1735476665892,0.00059486,95177.0,95174.0,0.11215712]
[1735476669960,0.00059486,95177.0,95174.0,0.12347789]
[1735476670336,0.00059486,95177.0,95174.0,0.11215712]
[1735476675584,0.00059486,95177.0,95175.0,0.00105057]
[1735476676737,0.00059486,95177.0,95175.0,0.00705057]
[1735476676993,0.01707829,95177.0,95175.0,0.00705057]
[1735476677909,0.01707829,95177.0,95175.0,0.006]
[1735476678078,0.01707829,95177.0,95175.0,0.008]
[1735476683675,0.00059486,95177.0,95175.0,0.008]
[1735476683875,0.00059486,95177.0,95175.0,0.0090505]
[1735476684083,0.00059486,95177.0,95175.0,0.02037126]
[1735476685251,0.00059486,95177.0,95175.0,0.0090505]
[1735476688388,0.01707822,95177.0,95175.0,0.0090505]
[1735476688589,0.01707822,95177.0,95175.0,0.008]
[1735476689210,0.01707822,95177.0,95175.0,0.0081708]
[1735476693751,0.00059486,95177.0,95175.0,0.0081708]
[1735476695289,0.00059486,95177.0,95175.0,0.0061708]
[1735476695519,0.00059486,95177.0,95175.0,0.02678984]
[1735476695724,0.00059486,95177.0,95175.0,0.02878984]
[1735476696311,0.00059486,95177.0,95175.0,0.0081708]
[1735476696690,0.00059486,95177.0,95175.0,0.0021708]
[1735476696970,0.00059486,95177.0,95175.0,0.0081708]
[1735476697168,0.01707809,95177.0,95175.0,0.0061708]
[1735476697419,0.01707809,95177.0,95175.0,0.0031708]
[1735476697793,0.01707809,95177.0,95175.0,0.0121708]
[1735476698022,0.01707809,95177.0,95175.0,0.0091708]
[1735476698210,0.01707809,95177.0,95175.0,0.0121708]
[1735476703684,0.00059486,95177.0,95175.0,0.0121708]
[1735476707141,0.01707809,95177.0,95175.0,0.0121708]
[1735476713796,0.00059486,95177.0,95175.0,0.0121708]
[1735476717137,0.01707805,95177.0,95175.0,0.0121708]
[1735476718087,0.01707805,95177.0,95175.0,0.0001708]
[1735476718539,0.01707805,95177.0,95175.0,0.0081708]
[1735476719447,0.01707805,95177.0,95175.0,0.0111708]
[1735476723768,0.00059486,95177.0,95175.0,0.0111708]
[1735476724070,0.00059486,95177.0,95175.0,0.02280865]
[1735476725098,0.00059486,95177.0,95175.0,0.0111708]
[1735476727200,0.01707811,95177.0,95175.0,0.0111708]
[1735476732468,0.01707811,95177.0,95176.0,0.18208632]
[1735476732624,0.01707811,95177.0,95176.0,0.18313685]
[1735476733833,0.00059486,95177.0,95176.0,0.18313685]
[1735476734039,0.00059486,95177.0,95176.0,0.19413685]
[1735476734496,0.00059486,95177.0,95176.0,0.21037703]
[1735476734697,0.00059486,95177.0,95176.0,0.2545265]
[1735476735843,0.00059486,95177.0,95176.0,0.23828632]
[1735476737092,0.01707702,95177.0,95176.0,0.23828632]
[1735476743757,0.00059486,95177.0,95176.0,0.23828632]
[1735476747589,0.01707707,95177.0,95176.0,0.23828632]
[1735476750050,0.01655567,95177.0,95176.0,0.23828632]
[1735476751033,0.01655567,95177.0,95176.0,0.23845712]
[1735476753704,7.346e-05,95177.0,95176.0,0.23845712]
[1735476754951,7.346e-05,95177.0,95176.0,0.0111708]
[1735476757186,0.01655647,95177.0,95176.0,0.0111708]
[1735476758046,0.43792447,95177.0,95176.0,0.0111708]
[1735476758247,1.67642747,95177.0,95176.0,0.0111708]
[1735476758453,1.40559647,95177.0,95176.0,0.0111708]
[1735476758669,0.96439647,95177.0,95176.0,0.0111708]
[1735476759335,0.85497047,95177.0,95176.0,0.0111708]
[1735476760036,0.85497047,95177.0,95176.0,0.0081708]
[1735476760311,0.85497047,95177.0,95176.0,0.0101708]
[1735476761216,0.85497047,95177.0,95176.0,0.0021708]
[1735476761597,0.85497047,95177.0,95176.0,0.0001708]
[1735476762203,0.85597047,95177.0,95176.0,0.0001708]
[1735476762758,0.14465647,95177.0,95176.0,0.0001708]
[1735476763079,1.39434747,95177.0,95176.0,0.0001708]
[1735476763283,1.08213047,95177.0,95176.0,0.0001708]
[1735476763509,0.96246647,95177.0,95176.0,0.0001708]
[1735476763720,0.41980746,95177.0,95176.0,0.0001708]
[1735476764684,0.26354246,95177.0,95176.0,0.0001708]
[1735476765912,0.26554246,95177.0,95176.0,0.0001708]
[1735476767291,0.30773969,95177.0,95176.0,0.0001708]
[1735476770189,0.33643286,95177.0,95176.0,0.0001708]
[1735476771037,0.34125024,95177.0,95176.0,0.0001708]
[1735476772108,0.31255707,95177.0,95176.0,0.0001708]
[1735476773236,0.17918807,95177.0,95176.0,0.0001708]
[1735476773753,2.60873961,95177.0,95176.0,0.0001708]
[1735476773956,2.84441955,95177.0,95176.0,0.0001708]
[1735476775862,2.60873961,95177.0,95176.0,0.0001708]
[1735476776445,2.60178581,95177.0,95176.0,0.0001708]
[1735476777128,2.79021261,95177.0,95176.0,0.0001708]
[1735476777330,2.82669981,95177.0,95176.0,0.0001708]
[1735476777532,2.80669981,95177.0,95176.0,0.0001708]
[1735476778371,2.61827301,95177.0,95176.0,0.0001708]
[1735476782491,2.29671601,95177.0,95176.0,0.0001708]
[1735476782667,2.29189863,95177.0,95176.0,0.0001708]
[1735476783876,2.27541143,95177.0,95176.0,0.0001708]
[1735476786746,2.29189813,95177.0,95176.0,0.0001708]
[1735476787136,2.21730213,95177.0,95176.0,0.0001708]
[1735476788276,2.13870213,95177.0,95176.0,0.0001708]
[1735476793606,2.12221543,95177.0,95176.0,0.0001708]
[1735476794609,2.1509086,95177.0,95176.0,0.0001708]
[1735476794821,2.23626241,95177.0,95176.0,0.0001708]
[1735476795827,2.43626241,95177.0,95176.0,0.0001708]
[1735476796666,2.45603818,95177.0,95176.0,0.0001708]
[1735476796871,0.40615518,95177.0,95176.0,0.0001708]
[1735476797079,3.63605418,95177.0,95176.0,0.0001708]
[1735476797277,3.74334518,95177.0,95176.0,0.0001708]
[1735476797439,3.72156941,95177.0,95176.0,0.0001708]
[1735476797662,3.72556941,95177.0,95176.0,0.0011708]
[1735476797875,3.74334518,95177.0,95176.0,0.0011708]
[1735476798077,3.74834518,95177.0,95176.0,0.0021708]
[1735476798279,3.74434518,95177.0,95176.0,0.0011708]
[1735476798496,3.73934518,95177.0,95176.0,0.0011708]
[1735476798764,3.75983385,95177.0,95176.0,0.0011708]
[1735476798939,3.76483385,95177.0,95176.0,0.0021708]
[1735476801428,4.08358468,95177.0,95176.0,0.0021708]
[1735476803703,4.06709601,95177.0,95176.0,0.0021708]
[1735476804138,3.74834518,95177.0,95176.0,0.0021708]
[1735476807200,3.76483398,95177.0,95176.0,0.0021708]
[1735476807552,0.42764398,95177.0,95176.0,0.0021708]
[1735476808005,3.98194598,95177.0,95176.0,0.0021708]
[1735476808207,3.96217021,95177.0,95176.0,0.0021708]
[1735476808779,3.19745621,95177.0,95176.0,0.0021708]
[1735476808932,3.18338117,95177.0,95176.0,0.0021708]
[1735476810065,3.08288917,95177.0,95176.0,0.0021708]
[1735476813267,3.10628131,95177.0,95176.0,0.0021708]
[1735476813706,3.08979251,95177.0,95176.0,0.0021708]
[1735476817414,3.10628141,95177.0,95176.0,0.0021708]
[1735476818010,0.44408241,95177.0,95176.0,0.0021708]
[1735476818219,3.99838441,95177.0,95176.0,0.0021708]
[1735476819619,3.93729941,95177.0,95176.0,0.0021708]
[1735476821671,3.83156641,95177.0,95176.0,0.0021708]
[1735476822077,3.83156641,95177.0,95176.0,0.00113541]
[1735476824127,3.81507751,95177.0,95176.0,0.00113541]
[1735476826200,3.62656396,95177.0,95176.0,0.00113541]
[1735476827061,3.64305241,95177.0,95176.0,0.00113541]
[1735476828604,0.25556841,95177.0,95176.0,0.00113541]
[1735476829565,0.23579264,95177.0,95176.0,0.00113541]
[1735476830125,3.79009464,95177.0,95176.0,0.00113541]
[1735476830764,3.80987041,95177.0,95176.0,0.00113541]
[1735476832718,3.80987041,95177.0,95176.0,0.00130621]
[1735476833022,3.80995581,95177.0,95176.0,0.00130621]
[1735476834035,3.79346736,95177.0,95176.0,0.00130621]
[1735476835991,3.72085536,95177.0,95176.0,0.00130621]
[1735476836169,3.31679236,95177.0,95176.0,0.00130621]
[1735476836531,0.18691205,95173.0,95172.0,0.08160806]
[1735476836727,3.43105905,95173.0,95172.0,0.08160806]
[1735476836951,0.18691205,95173.0,95172.0,0.08160806]
[1735476837182,0.20340023,95173.0,95172.0,0.08160806]
[1735476837536,3.19036602,95173.0,95172.0,0.08160806]
[1735476837734,3.190367,95173.0,95172.0,0.08160806]
[1735476837975,3.21285518,95173.0,95172.0,0.08160806]
[1735476838643,2.99891518,95173.0,95172.0,0.08160806]
[1735476839327,0.02248818,95173.0,95172.0,0.08160806]
[1735476839871,3.34421618,95173.0,95172.0,0.08160806]
[1735476840071,3.35321618,95173.0,95172.0,0.08260806]
[1735476840325,3.24487618,95173.0,95172.0,0.08260806]
[1735476840886,3.20928418,95173.0,95172.0,0.08260806]
[1735476841303,3.17621118,95173.0,95172.0,0.08260806]
[1735476842547,3.17621118,95173.0,95172.0,0.001]
[1735476842750,3.18316499,95173.0,95172.0,0.001]
[1735476843718,3.16667681,95173.0,95172.0,0.001]
[1735476844321,3.18316505,95173.0,95172.0,0.001]
[1735476844845,3.18316505,95173.0,95172.0,0.0010854]
[1735476845051,3.16667681,95173.0,95172.0,0.0010854]
[1735476847332,3.18316502,95173.0,95172.0,0.0010854]
[1735476848295,3.20294525,95173.0,95172.0,0.0010854]
[1735476849791,0.05822225,95173.0,95172.0,0.0010854]
[1735476850586,3.55691425,95173.0,95172.0,0.0010854]
[1735476850808,3.53713402,95173.0,95172.0,0.0010854]
[1735476851393,3.55691425,95173.0,95172.0,0.0010854]
[1735476853858,3.44720625,95173.0,95172.0,0.0010854]
[1735476857114,3.43088884,95173.0,95172.0,0.0010854]
[1735476859886,3.44737704,95173.0,95172.0,0.0010854]
[1735476863588,0.05839304,95173.0,95172.0,0.00056551]
[1735476863787,3.55708504,95173.0,95172.0,0.00056551]
[1735476863992,3.53730481,95173.0,95166.0,0.07331732]
[1735476864191,3.498692,95172.0,95166.0,0.07331732]
[1735476864575,0.01978023,95171.0,95166.0,0.07331732]
[1735476864786,3.498692,95170.0,95166.0,0.07331732]
[1735476865191,0.01978023,95169.0,95166.0,0.07431732]
[1735476865397,3.498692,95168.0,95166.0,0.07431732]
[1735476866207,0.01978023,95167.0,95166.0,0.07331732]
[1735476866400,3.51847223,95167.0,95166.0,0.07331732]
[1735476866639,3.51847223,95167.0,95166.0,0.07431732]
[1735476867623,3.38321823,95167.0,95166.0,0.07431732]
[1735476868457,3.38321823,95167.0,95166.0,0.07331732]
[1735476869118,3.38721823,95167.0,95166.0,0.07331732]
[1735476869358,3.39521823,95167.0,95166.0,0.07340272]
[1735476869814,3.41170654,95167.0,95166.0,0.07340272]
[1735476874562,0.04826854,95167.0,95166.0,0.07340272]
[1735476874908,3.54696054,95167.0,95166.0,0.07340272]
[1735476881065,3.26323454,95167.0,95166.0,0.07340272]
[1735476881286,3.24083554,95167.0,95166.0,0.07340272]
[1735476881965,3.24778935,95167.0,95166.0,0.07340272]
[1735476882175,3.24796015,95167.0,95166.0,0.07340272]
[1735476884934,0.05539315,95167.0,95166.0,0.07340272]
[1735476885364,3.53430492,95167.0,95166.0,8.54e-05]
[1735476885924,3.55408515,95167.0,95166.0,8.54e-05]
[1735476897832,3.53759684,95167.0,95166.0,8.54e-05]
[1735476898329,3.36342684,95167.0,95166.0,8.54e-05]
[1735476898680,3.31688284,95167.0,95166.0,8.54e-05]
[1735476899429,3.32161457,95167.0,95166.0,8.54e-05]
[1735476900484,3.34791664,95167.0,95166.0,8.54e-05]
[1735476901214,3.36440647,95167.0,95166.0,8.54e-05]
[1735476901368,3.35640647,95167.0,95166.0,8.54e-05]
[1735476901778,3.36140647,95167.0,95166.0,4.503e-05]
[1735476902199,3.36640647,95167.0,95166.0,4.503e-05]
[1735476902406,3.35740647,95167.0,95166.0,4.503e-05]
[1735476902717,3.36640647,95167.0,95166.0,4.503e-05]
[1735476903078,3.83162668,95167.0,95166.0,4.503e-05]
[1735476903512,3.52567968,95167.0,95166.0,4.503e-05]
[1735476904248,3.06045947,95167.0,95166.0,4.503e-05]
[1735476904449,3.05545947,95167.0,95166.0,4.503e-05]
[1735476906037,3.06145947,95167.0,95166.0,4.503e-05]
[1735476906240,3.58812047,95167.0,95166.0,4.503e-05]
[1735476908630,3.40160947,95167.0,95166.0,4.503e-05]
[1735476908804,3.15208247,95167.0,95166.0,4.503e-05]
[1735476910435,3.15208247,95167.0,95166.0,5.03e-06]
[1735476910939,3.09245147,95167.0,95166.0,5.03e-06]
[1735476918146,0.02630207,95166.0,95152.0,0.07462044]
[1735476918350,0.0048263,95165.0,95152.0,0.07462044]
[1735476918510,3.498692,95164.0,95152.0,0.07462044]
[1735476918725,3.50565487,95164.0,95152.0,0.07462044]
[1735476918926,3.498692,95163.0,95152.0,0.06206063]
[1735476919415,0.0267431,95162.0,95152.0,0.06206063]
[1735476919618,3.498692,95161.0,95152.0,0.06206063]
[1735476920005,0.00696508,95160.0,95152.0,0.06206063]
[1735476920217,3.498692,95159.0,95152.0,0.06206063]
[1735476920584,0.00696508,95158.0,95152.0,0.06206063]
[1735476920791,3.498692,95157.0,95152.0,0.06206063]
[1735476921691,0.02190603,95156.0,95152.0,0.06206063]
[1735476921888,3.498692,95155.0,95152.0,0.05706063]
[1735476922119,3.50139018,95155.0,95152.0,0.05706063]
[1735476922339,3.51847223,95154.0,95152.0,0.05706063]
[1735476922697,3.50138573,95153.0,95152.0,0.05706063]
[1735476922883,3.52116596,95153.0,95152.0,0.05706063]
[1735476923454,3.53765798,95153.0,95148.0,0.03]
[1735476923656,3.498692,95152.0,95148.0,0.03]
[1735476924221,0.01978023,95151.0,95148.0,0.03]
[1735476924439,3.498692,95150.0,95148.0,0.03]
[1735476924960,3.498692,95150.0,95149.0,0.0771]
[1735476925673,3.52116596,95150.0,95149.0,0.0771]
[1735476926515,3.53016596,95150.0,95149.0,0.0771]
[1735476926874,3.53616596,95150.0,95149.0,0.0771]
[1735476927882,0.03747396,95150.0,95149.0,0.0771]
[1735476928082,3.53616596,95150.0,95149.0,0.0771]
[1735476929411,3.85498662,95150.0,95149.0,0.0771]
[1735476930437,3.53616596,95150.0,95149.0,0.0771]
[1735476931566,3.53616596,95150.0,95149.0,0.0771854]
[1735476931739,3.53016596,95150.0,95149.0,0.0771854]
[1735476932139,3.53616596,95150.0,95149.0,0.0771854]
[1735476932479,3.52716596,95150.0,95149.0,0.07437377]
[1735476932685,3.53616596,95150.0,95149.0,0.07437377]
[1735476933118,3.56246803,95150.0,95149.0,8.54e-05]
[1735476933324,3.56943448,95150.0,95149.0,8.54e-05]
[1735476934120,3.56246803,95150.0,95147.0,0.02409564]
[1735476934324,3.50565845,95149.0,95147.0,0.02409564]
[1735476934527,3.498692,95148.0,95147.0,0.02409564]
[1735476934708,3.50135834,95148.0,95147.0,0.02409564]
[1735476935049,3.52810502,95148.0,95147.0,0.02071511]
[1735476935827,3.52810502,95148.0,95147.0,0.02122457]
[1735476936021,3.27213102,95148.0,95147.0,0.02122457]
[1735476936589,3.10917679,95148.0,95147.0,0.02122457]
[1735476936791,2.42884481,95148.0,95147.0,0.14622457]
[1735476937539,2.43784481,95148.0,95147.0,0.14622457]
[1735476938384,3.12096281,95148.0,95147.0,0.14622457]
[1735476938542,3.04128781,95148.0,95147.0,0.14622457]
[1735476938743,2.98706781,95148.0,95147.0,0.14622457]
[1735476938941,2.97427381,95148.0,95147.0,0.14622457]
[1735476939175,2.93518581,95148.0,95147.0,0.14622457]
[1735476939398,2.90302581,95148.0,95147.0,0.14622457]
[1735476940742,2.72635997,95148.0,95147.0,0.14622457]
[1735476941785,2.48732497,95148.0,95147.0,0.14622457]
[1735476941936,2.48732497,95148.0,95147.0,0.13546459]
[1735476942160,2.28921678,95148.0,95147.0,0.13546459]
[1735476942374,2.825186,95149.0,95147.0,0.13546459]
[1735476942545,3.02097,95148.0,95147.0,0.13546459]
[1735476942907,3.02727,95148.0,95147.0,0.13546459]
[1735476943106,2.509334,95148.0,95147.0,0.13546459]
[1735476944084,2.551487,95148.0,95147.0,0.13546459]
[1735476945686,2.56797913,95148.0,95147.0,0.13546459]
[1735476947543,2.56797913,95148.0,95147.0,0.13554999]
[1735476948955,3.13351113,95148.0,95147.0,0.13554999]
[1735476949340,3.13351113,95148.0,95147.0,0.08774999]
[1735476949543,2.952921,95148.0,95147.0,0.08774999]
[1735476949725,2.995074,95148.0,95147.0,0.08774999]
[1735476949926,3.0115661,95148.0,95147.0,0.08774999]
[1735476950132,2.9694131,95148.0,95147.0,0.08774999]
[1735476951103,2.9694131,95148.0,95147.0,0.01054999]
[1735476951279,3.00268221,95148.0,95147.0,0.01054999]
[1735476952894,3.02607435,95148.0,95147.0,0.01054999]
[1735476953099,3.04586047,95148.0,95147.0,0.01054999]
[1735476955742,3.02936837,95148.0,95147.0,0.01054999]
[1735476957010,3.04586111,95148.0,95147.0,0.01054999]
[1735476957975,2.87863411,95148.0,95147.0,0.01054999]
[1735476958233,2.85524197,95148.0,95147.0,0.01054999]
[1735476958438,2.8289399,95148.0,95147.0,0.01054999]
[1735476959200,2.7264169,95148.0,95147.0,0.01054999]
[1735476959399,3.04545914,95148.0,95147.0,0.01054999]
[1735476960435,3.02814014,95148.0,95147.0,0.01054999]
[1735476960634,2.18300786,95148.0,95147.0,0.09264999]
[1735476960841,2.18317866,95148.0,95147.0,0.09264999]
[1735476961034,2.16339254,95148.0,95147.0,0.09264999]
[1735476962227,2.1468998,95148.0,95147.0,0.09264999]
[1735476963173,0.0001708,95148.0,95147.0,0.09264999]
[1735476963377,2.5926678,95148.0,95147.0,0.09264999]
[1735476963584,2.6032178,95148.0,95147.0,0.08478741]
[1735476963761,2.2938678,95148.0,95147.0,0.08478741]
[1735476963969,2.2464358,95148.0,95147.0,0.13068741]
[1735476965009,2.52994561,95148.0,95147.0,0.13068741]
[1735476965206,2.53894561,95148.0,95147.0,0.13168741]
[1735476965608,1.68116161,95148.0,95147.0,0.13068741]
[1735476965813,1.52671761,95148.0,95147.0,0.13068741]
[1735476966492,1.1828158,95148.0,95147.0,0.13068741]
[1735476966950,1.1858158,95148.0,95147.0,0.13168741]
[1735476967353,1.1868158,95148.0,95147.0,0.13168741]
[1735476969249,1.1818158,95148.0,95147.0,0.13068741]
[1735476969654,1.1848158,95148.0,95147.0,0.13068741]
[1735476971813,1.42080982,95148.0,95147.0,0.13068741]
[1735476973712,1.1848158,95148.0,95147.0,0.13068741]
[1735476973918,1.20130652,95148.0,95147.0,0.13068741]
[1735476974328,1.1848158,95148.0,95147.0,0.13068741]
[1735476975989,1.0872328,95148.0,95147.0,0.13068741]
[1735476976203,0.7595508,95148.0,95147.0,0.13068741]
[1735476976966,0.77204108,95148.0,95147.0,0.13068741]
[1735476977951,0.77204108,95148.0,95147.0,0.14802493]
[1735476978171,0.77204108,95148.0,95147.0,0.23068741]
[1735476980920,0.77204108,95148.0,95147.0,0.23168741]
[1735476981322,0.47831508,95148.0,95147.0,0.23168741]
[1735476983800,0.01666108,95148.0,95147.0,0.23168741]
[1735476984177,0.0001708,95148.0,95147.0,0.23168741]
[1735476985406,0.0001708,95148.0,95147.0,0.23068741]
[1735476985812,0.0001708,95148.0,95147.0,0.23168741]
[1735476986163,0.0001708,95148.0,95147.0,0.23068741]
[1735476986609,0.0001708,95148.0,95147.0,0.23268741]
[1735476987687,0.0001708,95148.0,95147.0,0.23468741]
[1735476988403,0.0001708,95148.0,95147.0,0.23268741]
[1735476988636,0.0166606,95148.0,95147.0,0.23468741]
[1735476989806,0.0166606,95148.0,95147.0,0.36815615]
[1735476990535,0.0166606,95148.0,95147.0,0.3660636]
[1735476992591,0.0166606,95148.0,95147.0,0.3640636]
[1735476993053,0.0166606,95148.0,95147.0,0.3660636]
[1735476993411,0.0166606,95148.0,95147.0,0.3640636]
[1735476994037,0.0166606,95148.0,95147.0,0.3620636]
[1735476994437,0.0011708,95148.0,95147.0,0.3680636]
[1735476994847,0.0011708,95148.0,95147.0,0.3710636]
[1735476996015,0.0011708,95148.0,95147.0,0.33759486]